bitfinex/quotes_ETHUSD_20250810
["timestamp","ask_amount","ask_price","bid_price","bid_amount"]
[1754818274789,0.1204,4221.5,4221.4,3.29608236]
[1754818283383,0.002,4221.5,4221.4,4.68651045]
[1754818288407,0.002,4221.5,4221.4,3.29608236]
[1754818289581,0.002,4221.5,4221.4,2.36888236]
[1754818289782,0.002,4221.5,4221.1,2.369035]
[1754818289988,0.1204,4221.5,4221.3,2.3689139]
[1754818290430,0.1204,4221.5,4221.4,2.36888236]
[1754818290581,0.1204,4221.5,4221.0,3.9136]
[1754818290781,0.1204,4221.5,4221.3,2.36893738]
[1754818293180,0.1204,4221.5,4221.2,2.36897765]
[1754818293585,0.563,4221.5,4221.2,2.36897765]
[1754818293915,0.563,4221.5,4220.6,2.36928177]
[1754818293916,2.81153548,4221.4,4220.6,2.36928177]
[1754818294081,0.1184,4221.0,4220.6,2.36928177]
[1754818295089,0.1184,4221.0,4220.5,0.1184]
[1754818295419,0.1184,4221.0,4220.3,1e-08]
[1754818295420,0.1184,4220.7,4220.3,1e-08]
[1754818296323,3.606,4220.6,4220.3,1e-08]
[1754818296813,0.02368,4220.5,4220.3,1e-08]
[1754818297210,0.1184,4220.4,4220.3,1e-08]
[1754818297728,2.48784365,4220.4,4220.3,1e-08]
[1754818297902,2.93044365,4220.4,4220.3,1e-08]
[1754818298829,0.561,4220.4,4220.3,1e-08]
[1754818299128,0.1184,4220.4,4220.3,1e-08]
[1754818301524,2.48784365,4220.4,4220.3,1e-08]
[1754818301696,0.1184,4220.4,4220.3,1e-08]
[1754818306012,0.29721037,4220.4,4220.3,1e-08]
[1754818306215,0.1184,4220.4,4220.3,1e-08]
[1754818306902,3.606,4220.6,4220.3,9.15281202]
[1754818306903,0.1184,4220.5,4220.3,9.15281202]
[1754818307245,0.1184,4220.5,4220.4,4.4353605]
[1754818307804,3.606,4220.6,4220.5,2.36938751]
[1754818308010,3.606,4220.6,4220.5,3.32168751]
[1754818308510,0.1184,4220.9,4220.8,2.3692191]
[1754818308710,3.607,4221.2,4221.0,2.36909781]
[1754818309012,3.609,4221.5,4221.4,2.36888236]
[1754818309220,3.609,4221.5,4221.4,3.32118236]
[1754818309421,3.609,4221.5,4221.4,0.9523]
[1754818309623,3.609,4221.5,4221.1,10.25234299]
[1754818309838,3.609,4221.5,4221.2,0.9523]
[1754818310012,3.609,4221.5,4221.2,4.59526706]
[1754818310216,3.609,4221.5,4221.3,2.3689227]
[1754818310412,3.609,4221.5,4221.3,3.3212227]
[1754818310843,3.609,4221.5,4221.3,0.9523]
[1754818311446,4.309,4221.5,4221.3,3.3212272]
[1754818311643,4.309,4221.5,4221.4,2.36888236]
[1754818311848,4.309,4221.5,4221.4,3.32118236]
[1754818313452,4.309,4221.5,4221.4,0.9523]
[1754818313617,4.309,4221.5,4221.4,0.4828]
[1754818313823,4.309,4221.5,4221.3,3.10178807]
[1754818314023,4.309,4221.5,4221.4,2.36888236]
[1754818314423,4.309,4221.5,4221.3,3.10177778]
[1754818314655,4.309,4221.5,4221.4,2.36888236]
[1754818314836,4.309,4221.5,4221.3,0.73285405]
[1754818315354,4.309,4221.5,4221.2,2.36899459]
[1754818315550,4.309,4221.5,4221.2,2.85179459]
[1754818315850,4.309,4221.5,4221.3,2.36892602]
[1754818316555,4.309,4221.5,4221.4,2.36888236]
[1754818316929,4.309,4221.5,4221.4,2.85168236]
[1754818317257,4.309,4221.5,4221.4,3.32118236]
[1754818322470,0.702,4221.5,4221.4,4.7141207]
[1754818322673,0.002,4221.5,4221.4,4.7141207]
[1754818323781,0.002,4221.5,4221.4,2.36888236]
[1754818325764,0.002,4221.5,4221.3,2.36892073]
[1754818326467,0.002,4221.5,4221.4,2.36888236]
[1754818327040,0.002,4221.5,4221.4,3.32118236]
[1754818327540,0.002,4221.5,4221.4,2.85168236]
[1754818327771,0.002,4221.5,4221.4,2.36888236]
[1754818328461,0.002,4221.5,4221.4,2.85168236]
[1754818328670,0.002,4221.5,4221.4,3.32118236]
[1754818329075,0.002,4221.5,4221.4,2.85168236]
[1754818329588,0.002,4221.5,4221.4,2.36888236]
[1754818329785,0.002,4221.5,4221.4,3.32118236]
[1754818331166,0.002,4221.5,4221.4,4.71412101]
[1754818334372,0.002,4221.5,4221.4,3.32118236]
[1754818335097,0.002,4221.5,4221.4,2.36888236]
[1754818335785,0.002,4221.5,4221.4,2.85168236]
[1754818335989,0.002,4221.5,4221.4,3.32118236]
[1754818337196,0.002,4221.5,4221.4,3.43958236]
[1754818337386,0.002,4221.5,4221.4,4.84672994]
[1754818337585,0.002,4221.5,4221.4,11.45072994]
[1754818337792,0.002,4221.5,4221.4,11.54553094]
[1754818338691,0.002,4221.5,4221.4,12.96853094]
[1754818338902,0.002,4221.5,4221.4,11.54553094]
[1754818339405,0.002,4221.5,4221.4,12.09553094]
[1754818340867,0.042,4221.9,4221.8,2.36865791]
[1754818341079,0.002,4222.0,4221.9,2.36860181]
[1754818341295,0.002,4222.0,4221.9,3.27940181]
[1754818342391,0.002,4222.0,4221.9,3.30308782]
[1754818342973,0.002,4222.0,4221.9,3.39787482]
[1754818344290,0.002,4222.0,4221.9,6.97818881]
[1754818344502,0.002,4222.0,4221.9,9.1260084]
[1754818347390,0.002,4222.0,4221.9,12.1260084]
[1754818351812,0.002,4222.0,4221.9,8.5220084]
[1754818351981,0.002,4222.0,4221.9,12.1250084]
[1754818352178,0.002,4222.0,4221.9,11.6819084]
[1754818352486,0.002,4222.8,4222.1,5.91848961]
[1754818352727,0.002,4222.8,4222.2,3.0]
[1754818352728,1e-08,4222.4,4222.2,3.0]
[1754818352907,0.002,4222.8,4222.6,0.55]
[1754818353223,0.002,4222.8,4222.7,17.78404661]
[1754818353395,1e-08,4222.8,4222.7,17.76036508]
[1754818353709,1e-08,4222.8,4222.7,18.78956508]
[1754818354008,1e-08,4222.8,4222.7,20.90534442]
[1754818357714,0.04,4223.9,4223.2,2.3678727]
[1754818358047,0.04,4223.9,4223.4,2.36775122]
[1754818358204,0.04,4223.9,4223.8,11.23921201]
[1754818358510,0.04,4223.9,4223.8,17.32714835]
[1754818358705,0.04,4223.9,4223.8,19.38770434]
[1754818360394,0.04,4223.9,4223.8,19.85540434]
[1754818360727,0.04,4223.9,4223.8,20.29850434]
[1754818362515,0.04,4223.9,4223.8,19.85540434]
[1754818362715,0.04,4223.9,4223.8,20.29850434]
[1754818362936,0.04,4223.9,4223.8,19.38770434]
[1754818363239,0.04,4223.9,4223.8,20.29850434]
[1754818364634,0.04,4223.9,4223.8,20.84850434]
[1754818365396,1e-08,4223.9,4223.8,20.84850434]
[1754818366235,1e-08,4223.9,4223.8,8.33889233]
[1754818366444,1e-08,4223.9,4223.8,18.78694835]
[1754818371356,0.002,4224.4,4223.8,18.78694835]
[1754818371357,1e-08,4224.4,4224.0,1.422]
[1754818371664,1e-08,4224.4,4224.3,0.1184]
[1754818371872,0.2272,4224.3,4224.1,2.48575902]
[1754818372025,1e-08,4224.4,4224.2,2.36730494]
[1754818372352,0.2272,4224.2,4224.1,2.48575529]
[1754818372739,0.6644,4224.2,4224.1,2.48575529]
[1754818373459,0.4372,4224.2,4224.1,2.48575529]
[1754818373758,0.6644,4224.2,4224.1,0.1184]
[1754818373924,0.6644,4224.2,4223.9,2.36742665]
[1754818374124,1e-08,4224.4,4223.9,2.36742665]
[1754818374125,0.6644,4224.1,4223.9,2.36742665]
[1754818374434,0.6644,4224.1,4223.8,3.0]
[1754818374435,0.6644,4224.0,4223.8,2.3675341]
[1754818374635,0.6644,4223.9,4223.7,2.48597782]
[1754818374961,0.4372,4223.8,4223.7,2.48597782]
[1754818375667,1e-08,4224.4,4223.7,4.26376767]
[1754818375838,0.4372,4224.3,4223.8,2.36749293]
[1754818376038,0.4372,4224.2,4223.7,0.1184]
[1754818376247,2.36763978,4223.7,4221.8,0.4644]
[1754818376441,0.546,4223.6,4222.7,2.36814501]
[1754818376752,0.1184,4223.1,4222.8,2.36808423]
[1754818377256,0.4372,4223.0,4222.9,2.36903168]
[1754818377750,0.4372,4223.0,4222.9,0.001]
[1754818377953,0.546,4223.0,4222.9,0.001]
[1754818380955,2.93766484,4223.0,4222.9,0.001]
[1754818381364,0.56968,4223.0,4222.9,0.001]
[1754818381660,0.546,4223.0,4222.9,0.001]
[1754818382651,0.56968,4223.0,4222.9,0.001]
[1754818382835,2.91398484,4223.0,4222.9,0.001]
[1754818384854,2.80518484,4223.0,4222.9,0.001]
[1754818385242,6.41918484,4223.0,4222.9,0.001]
[1754818385444,0.4372,4223.0,4222.9,0.001]
[1754818386048,6.41918484,4223.0,4222.9,0.001]
[1754818386255,6.52798484,4223.0,4222.9,0.001]
[1754818389450,7.07932157,4223.0,4222.9,0.001]
[1754818390448,10.07932157,4223.0,4222.9,0.001]
[1754818391269,10.07932157,4223.0,4222.9,1e-08]
[1754818392246,10.07798484,4223.0,4222.9,1e-08]
[1754818392447,10.07932157,4223.0,4222.9,1e-08]
[1754818393875,6.46532157,4223.0,4222.9,1e-08]
[1754818394177,10.08232157,4223.0,4222.9,1e-08]
[1754818395671,9.97352157,4223.0,4222.9,1e-08]
[1754818396398,9.53632157,4223.0,4222.9,1e-08]
[1754818396554,9.97218484,4223.0,4222.9,1e-08]
[1754818397161,9.53498484,4223.0,4222.9,1e-08]
[1754818397366,5.91798484,4223.0,4222.9,1e-08]
[1754818397781,9.53498484,4223.0,4222.9,1e-08]
[1754818399562,10.00918484,4223.0,4222.9,1e-08]
[1754818400485,10.01052157,4223.0,4222.9,1e-08]
[1754818402680,9.53632157,4223.0,4222.9,1e-08]
[1754818403181,10.01052157,4223.0,4222.9,1e-08]
[1754818403577,4.09253673,4223.0,4222.9,1e-08]
[1754818403778,6.48420157,4223.0,4222.9,1e-08]
[1754818403970,6.46052157,4223.0,4222.9,1e-08]
[1754818404169,6.96963259,4223.0,4222.9,1e-08]
[1754818405074,6.49543259,4223.0,4222.9,1e-08]
[1754818405663,7.04543259,4223.0,4222.9,1e-08]
[1754818406394,7.51963259,4223.0,4222.9,1e-08]
[1754818407598,11.2667846,4223.0,4222.9,1e-08]
[1754818407801,10.84987187,4223.0,4222.9,1e-08]
[1754818408109,10.84853514,4223.0,4222.9,1e-08]
[1754818409397,11.70104877,4223.0,4222.9,1e-08]
[1754818409799,11.59224877,4223.0,4222.9,1e-08]
[1754818410100,11.12004877,4223.0,4222.9,1e-08]
[1754818410982,11.12013441,4223.0,4222.9,1e-08]
[1754818412005,11.59433441,4223.0,4222.9,1e-08]
[1754818412303,10.74315751,4223.0,4222.9,1e-08]
[1754818413903,5.36804091,4222.9,4222.8,1e-08]
[1754818414070,5.36804091,4222.9,4222.0,0.001]
[1754818414071,2.36848961,4222.1,4222.0,0.001]
[1754818414274,19.03475217,4222.1,4222.0,0.001]
[1754818414501,18.61790774,4222.1,4222.0,0.001]
[1754818414888,18.61924447,4222.1,4222.0,0.001]
[1754818415504,6.83003246,4222.1,4222.0,0.001]
[1754818415710,6.60833736,4222.1,4222.0,0.9187]
[1754818415882,7.24673752,4222.1,4222.0,0.9187]
[1754818416081,6.60833736,4222.1,4222.0,0.9187]
[1754818416293,6.60833736,4222.1,4222.0,0.4639]
[1754818416696,6.60833736,4222.1,4222.0,0.001]
[1754818416905,6.83000146,4222.1,4222.0,0.001]
[1754818417078,9.83000146,4222.1,4222.0,0.001]
[1754818417808,18.61921347,4222.1,4222.0,0.001]
[1754818419612,9.60833736,4222.1,4222.0,0.4639]
[1754818419794,6.60833736,4222.1,4222.0,0.9187]
[1754818419994,7.24663583,4222.1,4222.0,0.9187]
[1754818420288,6.60833736,4222.1,4222.0,0.9187]
[1754818420681,6.60700063,4222.1,4222.0,0.9187]
[1754818422130,4.23851102,4222.1,4222.0,0.9187]
[1754818422313,3.7294,4222.1,4222.0,0.9187]
[1754818422890,0.1184,4222.1,4222.0,0.9187]
[1754818423095,3.7294,4222.1,4222.0,0.9187]
[1754818424003,3.7294,4222.1,4222.0,1.2474343]
[1754818425189,0.1184,4222.1,4222.0,3.61598001]
[1754818425425,3.7294,4222.1,4222.0,3.61598001]
[1754818425595,3.611,4222.1,4222.0,3.61598001]
[1754818429394,0.11973673,4222.6,4222.0,9.60504631]
[1754818429599,0.11973673,4222.6,4222.5,2.36826524]
[1754818429799,3.72973673,4222.6,4222.5,2.36826524]
[1754818429995,3.72973673,4222.6,4222.5,3.31526524]
[1754818431718,3.7284,4222.6,4222.5,3.31526524]
[1754818435395,0.002,4223.0,4222.9,2.36804091]
[1754818435600,3.7284,4223.0,4222.9,2.8416565]
[1754818435796,0.1204,4223.0,4222.9,3.7886565]
[1754818436029,3.7284,4223.0,4222.9,3.7886565]
[1754818438225,0.002,4223.0,4222.9,3.7886565]
[1754818438431,0.002,4223.0,4222.9,6.7886565]
[1754818440611,0.002,4223.0,4222.9,6.3251565]
[1754818440806,0.002,4223.0,4222.9,6.7886565]
[1754818441901,0.002,4223.0,4222.9,6.9070565]
[1754818442903,0.002,4223.0,4222.9,6.7886565]
[1754818448208,0.002,4223.0,4222.9,6.3251565]
[1754818448431,0.002,4223.0,4222.9,6.7886565]
[1754818448833,0.002,4223.0,4222.9,5.8416565]
[1754818449910,0.002,4223.0,4222.9,6.7886565]
[1754818450730,0.002,4223.0,4222.9,5.8416565]
[1754818451210,0.002,4223.0,4222.9,3.0]
[1754818451410,0.1204,4223.0,4222.2,1.0654]
[1754818451626,0.1204,4223.0,4222.5,2.36821688]
[1754818451825,0.1184,4222.7,4222.5,2.36821688]
[1754818452022,0.0684,4222.7,4222.3,3.0]
[1754818452228,0.0684,4222.7,4222.3,5.36836918]
[1754818452428,0.0684,4222.7,4222.6,2.36820916]
[1754818453024,0.0684,4222.7,4222.5,2.36826225]
[1754818453427,0.0684,4222.7,4222.4,3.0]
[1754818453647,0.0684,4222.7,4222.5,2.36826524]
[1754818453845,0.0684,4222.7,4222.4,3.0]
[1754818454357,0.0684,4222.7,4222.3,0.001]
[1754818454515,0.0684,4222.7,4222.3,2.36936786]
[1754818454719,0.0684,4222.7,4222.3,0.001]
[1754818454917,2.36815733,4222.7,4222.3,0.001]
[1754818455135,0.1184,4222.4,4222.3,0.001]
[1754818455821,2.48672133,4222.4,4222.3,0.001]
[1754818456037,2.94012133,4222.4,4222.3,0.001]
[1754818456542,2.96380133,4222.4,4222.3,0.001]
[1754818456748,3.07260133,4222.4,4222.3,0.001]
[1754818456951,3.04892133,4222.4,4222.3,0.001]
[1754818460726,2.94012133,4222.4,4222.3,0.001]
[1754818462751,3.05025806,4222.4,4222.3,0.001]
[1754818462952,6.09305806,4222.4,4222.3,0.001]
[1754818467338,6.52415806,4222.4,4222.3,0.001]
[1754818469552,6.09305806,4222.4,4222.3,0.001]
[1754818471150,3.72473673,4222.4,4222.3,0.001]
[1754818471352,3.72473673,4222.4,4222.3,0.9056]
[1754818471730,6.09172133,4222.4,4222.3,0.9056]
[1754818471935,3.7234,4222.4,4222.3,0.9056]
[1754818472135,6.09172133,4222.4,4222.3,0.9056]
[1754818473463,0.1184,4222.4,4222.3,0.9056]
[1754818473664,3.7234,4222.4,4222.3,0.9056]
[1754818474966,6.09172133,4222.4,4222.3,0.001]
[1754818477656,3.7234,4222.4,4222.3,0.001]
[1754818477856,3.7234,4222.4,4222.3,0.9056]
[1754818478058,3.7234,4222.4,4222.3,3.27397742]
[1754818478362,3.7234,4222.4,4222.3,3.83832135]
[1754818478752,0.1184,4222.4,4222.3,3.83832135]
[1754818479074,3.7244,4222.4,4222.3,3.83832135]
[1754818479571,0.1184,4222.4,4222.3,3.83832135]
[1754818479754,0.1184,4222.6,4222.5,2.36822696]
[1754818479953,3.7244,4222.6,4222.5,3.89352567]
[1754818480972,3.7254,4222.6,4222.5,3.89352567]
[1754818481442,3.7254,4222.6,4222.5,1.52526043]
[1754818481981,3.7254,4222.6,4222.5,3.89352567]
[1754818482387,0.002,4222.7,4222.6,2.36820916]
[1754818482579,3.608,4222.7,4222.6,8.28352223]
[1754818482886,0.002,4222.7,4222.6,8.25984014]
[1754818489985,0.002,4222.7,4222.6,7.35524014]
[1754818490164,0.002,4222.7,4222.6,5.36820916]
[1754818490368,0.002,4222.7,4222.6,5.83380916]
[1754818490564,0.002,4222.7,4222.6,6.27340916]
[1754818493571,0.002,4222.7,4222.6,5.48660916]
[1754818493773,0.002,4222.7,4222.6,5.36820916]
[1754818494477,0.002,4222.7,4222.6,3.0]
[1754818495185,0.002,4222.7,4222.6,6.27340916]
[1754818495360,0.002,4222.7,4222.6,6.99660918]
[1754818495993,0.002,4222.7,4222.6,6.99760918]
[1754818497294,0.002,4222.7,4222.6,15.23682119]
[1754818499779,0.002,4222.7,4222.6,6.99760918]
[1754818500293,0.002,4222.7,4222.6,6.09240918]
[1754818500499,0.002,4222.7,4222.6,5.36920916]
[1754818501184,0.002,4222.7,4222.6,6.27440916]
[1754818501583,0.002,4222.7,4222.6,14.51362117]
[1754818501967,0.002,4222.7,4222.6,18.11762117]
[1754818502167,0.002,4222.7,4222.6,20.85839377]
[1754818503207,1e-08,4222.7,4222.6,20.85839377]
[1754818504500,1e-08,4223.0,4222.9,2.91804091]
[1754818504704,1e-08,4223.5,4223.4,5.91776057]
[1754818504886,1e-08,4223.6,4223.5,14.15691652]
[1754818505082,3.605,4225.2,4224.8,2.36697595]
[1754818505613,3.605,4225.2,4224.8,6.27217595]
[1754818505909,3.605,4225.2,4224.8,3.0]
[1754818506112,3.605,4225.2,4224.8,5.36697595]
[1754818506276,3.605,4225.2,4224.8,3.0]
[1754818506484,0.1584,4224.9,4224.8,3.0]
[1754818506977,0.04,4224.9,4224.8,5.36697595]
[1754818507180,0.04,4224.9,4224.8,6.27217595]
[1754818507424,0.04,4224.9,4224.8,7.13610148]
[1754818507577,0.04,4224.9,4224.8,11.41050148]
[1754818507784,0.1584,4225.9,4225.8,2.36641582]
[1754818507984,0.04,4225.9,4225.8,13.60562783]
[1754818508236,0.04,4225.9,4225.8,18.78822783]
[1754818508405,0.04,4225.9,4225.8,17.29470227]
[1754818508602,0.04,4225.9,4225.8,8.50549026]
[1754818508980,0.04,4225.9,4225.8,7.60029026]
[1754818509598,0.04,4225.9,4225.8,5.95041582]
[1754818509784,0.04,4225.9,4225.8,4.0236]
[1754818510001,0.04,4225.9,4225.8,5.48481582]
[1754818510186,0.04,4225.9,4225.8,3.1184]
[1754818510406,0.04,4225.9,4225.8,3.0]
[1754818510906,0.04,4225.9,4225.6,0.1184]
[1754818511289,0.1584,4225.9,4225.3,0.1184]
[1754818511507,0.1584,4225.9,4225.3,2.48508243]
[1754818511707,0.1584,4225.9,4225.0,3.61]
[1754818511908,0.45748,4225.8,4225.1,0.1184]
[1754818512109,0.1184,4225.6,4225.1,0.1184]
[1754818512529,0.4338,4225.5,4224.6,2.83268646]
[1754818512690,0.1184,4225.3,4224.8,2.3669398]
[1754818513026,0.1184,4225.3,4224.9,2.36689991]
[1754818513251,0.1184,4225.3,4224.7,3.1184]
[1754818513252,0.5522,4225.3,4224.8,2.36697206]
[1754818513679,0.5522,4225.3,4224.7,0.1184]
[1754818513680,0.4338,4225.2,4224.7,0.1184]
[1754818513884,0.4338,4225.2,4224.5,2.36713393]
[1754818514083,0.1184,4224.9,4224.5,2.36713393]
[1754818514293,0.1184,4224.9,4224.4,3.0]
[1754818514493,0.1184,4224.9,4224.6,2.36706537]
[1754818514887,0.1184,4224.9,4224.5,2.36713366]
[1754818515290,0.1184,4224.9,4224.6,2.36707911]
[1754818517484,0.1204,4224.9,4224.6,2.36707911]
[1754818517907,0.1204,4224.9,4224.7,2.36702714]
[1754818518107,0.1204,4224.9,4224.6,2.36707614]
[1754818520517,0.1204,4224.9,4224.6,2.83067614]
[1754818521022,0.1204,4224.9,4224.7,3.0]
[1754818521988,0.1204,4224.9,4224.7,2.36702776]
[1754818522206,0.1204,4224.9,4224.6,2.83068039]
[1754818522711,0.1204,4224.9,4224.8,2.36697595]
[1754818523092,0.1204,4224.9,4224.8,4.42587009]
[1754818523291,0.002,4224.9,4224.8,4.42587009]
[1754818523718,0.002,4224.9,4224.8,4.44953984]
[1754818524015,0.002,4224.9,4224.8,7.42587009]
[1754818525038,0.002,4224.9,4224.8,7.97587009]
[1754818526621,0.002,4224.9,4224.8,11.58287009]
[1754818529826,0.002,4224.9,4224.8,11.58187009]
[1754818534724,0.002,4224.9,4224.8,19.80985383]
[1754818535340,0.002,4225.8,4225.7,2.91647182]
[1754818535506,0.002,4225.8,4225.7,5.658119]
[1754818537140,0.002,4225.8,4225.7,6.121719]
[1754818537716,0.002,4225.8,4225.7,5.658119]
[1754818540251,0.002,4225.8,4225.7,10.714019]
[1754818541139,0.002,4225.8,4225.7,10.80872]
[1754818541331,1e-08,4225.8,4225.7,5.75282]
[1754818541531,1e-08,4225.8,4225.7,5.658119]
[1754818541757,1e-08,4225.8,4225.7,5.36647182]
[1754818541956,2.81436188,4225.8,4224.6,0.001]
[1754818542265,2.36652783,4225.6,4224.6,0.001]
[1754818542562,2.36665421,4225.4,4224.6,2.36807304]
[1754818542764,0.4479,4225.3,4224.7,2.36697923]
[1754818542961,1e-08,4225.8,4225.0,3.0]
[1754818543173,1e-08,4225.8,4225.5,2.36653069]
[1754818543331,1e-08,4225.8,4225.6,2.36650486]
[1754818543531,1e-08,4225.8,4225.7,2.36647182]
[1754818543832,1e-08,4225.8,4225.5,2.36655325]
[1754818544048,1e-08,4225.8,4225.6,2.36651779]
[1754818544958,1e-08,4225.8,4225.5,2.3665691]
[1754818545160,2.36646039,4225.8,4224.7,2.36703197]
[1754818545344,2.36662615,4225.5,4224.7,2.36698807]
[1754818545542,0.1184,4225.2,4224.7,2.36698807]
[1754818545880,0.4479,4225.1,4224.7,2.36698807]
[1754818546078,0.1184,4225.2,4224.8,2.36697175]
[1754818546279,0.1184,4225.2,4225.0,2.36685325]
[1754818546585,0.1184,4225.2,4225.0,2.36686354]
[1754818547078,0.1184,4225.2,4224.7,3.0]
[1754818547279,0.5663,4225.2,4224.6,3.1194]
[1754818547485,0.5663,4225.2,4224.9,2.36691495]
[1754818547673,0.5663,4225.2,4224.7,2.36697849]
[1754818547878,0.4693,4225.1,4224.7,2.36697849]
[1754818548055,0.4693,4225.0,4224.6,0.1194]
[1754818548564,0.4693,4225.0,4224.7,2.36703197]
[1754818549564,0.1184,4225.2,4224.7,2.36703197]
[1754818549771,0.4693,4225.1,4224.7,2.36703197]
[1754818549972,0.4693,4225.1,4224.6,0.001]
[1754818550173,0.4693,4225.1,4224.6,2.36808686]
[1754818550483,0.4693,4225.1,4224.6,0.001]
[1754818551158,2.39050676,4225.1,4224.6,0.001]
[1754818551360,0.1184,4224.7,4224.6,0.001]
[1754818552092,0.5877,4224.7,4224.6,0.001]
[1754818553179,0.1184,4224.7,4224.6,0.001]
[1754818560602,0.1184,4224.7,4224.6,2.368088]
[1754818560808,0.1184,4224.7,4224.6,5.825088]
[1754818561197,0.1184,4224.7,4224.6,3.458]
[1754818561403,0.1184,4224.7,4224.6,3.001]
[1754818563121,0.1184,4224.7,4224.6,5.368088]
[1754818563421,0.1184,4224.7,4224.6,3.001]
[1754818563622,0.1184,4224.7,4224.6,5.368088]
[1754818566396,0.1184,4224.7,4224.6,3.001]
[1754818567737,0.1184,4224.7,4224.6,5.368088]
[1754818568448,0.1184,4224.7,4224.6,5.825088]
[1754818569925,0.1184,4224.7,4224.6,6.287388]
[1754818570120,0.17741759,4225.4,4224.9,2.36689624]
[1754818570337,0.1184,4225.0,4224.9,2.36689624]
[1754818570546,0.1184,4225.0,4224.9,3.28619624]
[1754818571221,3.615,4225.7,4224.9,3.28619624]
[1754818571423,0.1184,4225.2,4224.9,3.28619624]
[1754818571624,0.1184,4225.2,4225.0,3.9193]
[1754818572024,0.1184,4225.2,4225.1,3.28610788]
[1754818576025,3.615,4225.7,4225.3,2.36665124]
[1754818576227,0.1184,4225.5,4225.4,2.82363984]
[1754818577260,0.1184,4225.5,4225.4,0.457]
[1754818577553,0.1184,4225.5,4225.3,2.36668184]
[1754818577728,0.1184,4225.5,4225.2,2.3667491]
[1754818577928,0.1184,4225.5,4225.3,2.36668805]
[1754818579053,0.1184,4225.5,4225.4,2.36663984]
[1754818579232,0.1184,4225.5,4225.2,3.4731]
[1754818579233,0.1184,4225.5,4225.3,2.83978166]
[1754818579432,0.1184,4225.5,4225.3,2.36668166]
[1754818579650,0.1184,4225.5,4225.2,2.83983724]
[1754818579840,0.1184,4225.5,4225.3,2.36669358]
[1754818580553,0.1184,4225.5,4225.4,2.36663984]
[1754818580728,0.1184,4225.5,4225.3,2.36668563]
[1754818580929,0.1184,4225.5,4225.4,2.36663984]
[1754818581130,0.1184,4225.5,4225.2,0.4731]
[1754818581131,0.1184,4225.5,4225.3,2.36668614]
[1754818581655,2.36669659,4225.3,4224.6,0.001]
[1754818581837,0.1184,4224.8,4224.6,0.001]
[1754818583584,0.1184,4224.8,4224.7,2.36703197]
[1754818584082,0.1184,4224.8,4224.6,0.001]
[1754818584083,0.1184,4224.8,4224.6,2.36807858]
[1754818584882,0.1184,4224.8,4224.6,0.001]
[1754818585387,0.1184,4224.8,4224.7,3.9112]
[1754818585694,0.1184,4224.8,4224.6,3.001]
[1754818585981,0.1184,4224.8,4224.6,0.001]
[1754818586849,2.48538083,4224.8,4224.6,0.001]
[1754818587255,2.39071197,4224.7,4224.6,0.001]
[1754818587456,2.85821197,4224.7,4224.6,0.001]
[1754818587675,0.1184,4224.8,4224.6,0.001]
[1754818587880,2.36703197,4224.7,4224.6,0.001]
[1754818588186,0.1184,4224.8,4224.6,0.001]
[1754818588757,2.36703197,4224.7,4224.6,0.001]
[1754818589790,2.48543197,4224.7,4224.6,0.001]
[1754818590772,0.1184,4224.7,4224.6,0.001]
[1754818591366,0.1184,4224.7,4224.6,0.9122]
[1754818591990,0.1184,4224.7,4224.6,0.001]
[1754818592998,0.1184,4224.7,4224.6,0.4741]
[1754818593166,0.1184,4224.7,4224.6,0.9122]
[1754818593367,3.7284,4224.7,4224.6,0.001]
[1754818593567,6.09543197,4224.7,4224.6,0.001]
[1754818593970,3.7284,4224.7,4224.6,0.001]
[1754818595499,6.09543197,4224.7,4224.6,0.001]
[1754818595699,3.7284,4224.7,4224.6,0.001]
[1754818598684,3.7284,4224.7,4224.6,0.4741]
[1754818598891,3.7284,4224.7,4224.6,0.9122]
[1754818599299,0.1184,4224.8,4224.7,2.36703197]
[1754818599532,0.1184,4225.0,4224.7,0.93487031]
[1754818599817,0.1184,4225.0,4224.9,2.36691992]
[1754818600319,0.1184,4225.5,4225.2,2.36675186]
[1754818600618,1e-08,4225.8,4225.3,1.47154214]
[1754818600818,1e-08,4225.8,4225.7,2.36647182]
[1754818601186,1e-08,4225.8,4225.7,3.27767182]
[1754818602508,0.1584,4225.9,4225.8,2.91641582]
[1754818602509,1e-08,4225.9,4225.8,2.91641582]
[1754818602718,1e-08,4225.9,4225.8,8.95719319]
[1754818602921,1e-08,4225.9,4225.8,6.01711322]
[1754818603220,1e-08,4225.9,4225.8,14.62839511]
[1754818605322,1e-08,4225.9,4225.8,10.01501582]
[1754818607191,1e-08,4225.9,4225.8,6.39601582]
[1754818608016,1e-08,4225.9,4225.8,5.95791582]
[1754818610194,1e-08,4225.9,4225.8,5.36641582]
[1754818610397,1e-08,4225.9,4225.8,15.72813669]
[1754818610606,0.002,4226.2,4226.1,5.91624784]
[1754818610900,0.002,4226.2,4226.1,9.65464784]
[1754818611226,0.004,4226.5,4226.4,5.91607987]
[1754818611428,0.004,4226.5,4226.4,17.88785916]
[1754818611619,0.004,4226.5,4226.4,20.83756426]
[1754818613199,0.004,4226.5,4226.4,20.93224826]
[1754818613901,0.004,4226.5,4226.4,20.93424826]
[1754818615434,0.004,4226.5,4226.4,17.31124826]
[1754818615661,0.004,4226.5,4226.4,7.60456897]
[1754818615815,0.004,4226.5,4226.4,9.67476387]
[1754818616131,0.004,4226.5,4226.4,10.12646387]
[1754818617037,0.004,4226.5,4226.4,10.67646387]
[1754818619944,0.004,4226.5,4226.4,9.20316387]
[1754818620650,0.004,4226.5,4226.4,9.10747987]